Cogmind - Beta 14 @@@ ROGUE MODE // 2024.08.19 @ 14:46:55 Player: Minty Result: Self-destructed Performance ------------- Evolutions (7) 3500 Regions Visited (13) 2600 Robots Destroyed (168) 840 Value Destroyed (6903) 6903 Prototype IDs (38) 760 Alien Tech Used (0) 0 Bonus (4254) 4254 TOTAL SCORE: 18857 Bonus ------- High Alert Combat Kills 1556 Follower Combat Kills 1858 Entered Garrisons 200 Used RIF Installer 500 Built Enhanced Grunts 300 A7 Reached Mainframe 300 Friendly Fire -460 Cogmind --------- Core Integrity 1018/1300 Matter 161/300 Energy 38/100 System Corruption 0% Temperature Cool (0) Movement Core (300) Ox5 Location -3/Research Parts ------- > --- POWER (1) -------- (None) > --- PROPULSION (6) --- Antigrav Array Cooled Impulse Thruster Cooled Impulse Thruster > --- UTILITY (11) ----- Advanced Visual Processing Unit Advanced Sensor Array Advanced Targeting Computer Centrium Light Armor Plating Improved Hacking Suite Advanced Hacking Suite Experimental System Shield Advanced Corruption Screen > --- WEAPON (3) ------- Hypervelocity Mass Driver > --- INVENTORY (5) ---- Improved Kinecellerator Phase Gun Advanced Variable Charge Gun Advanced Remote Datajack Peak State ------------ > --- POWER ------------ Quantum Reactor > --- PROPULSION ------- Gravmag Array Gravmag Array Linear Gravjet Linear Gravjet > --- UTILITY ---------- Advanced Heat Sink Advanced Coolant Injector Advanced Visual Processing Unit Advanced Sensor Array Improved Kinecellerator Experimental Propulsion Shielding Centrium Medium Armor Plating Improved Hacking Suite Advanced Hacking Suite Relay Coupler [Sentry] Advanced Corruption Screen > --- WEAPON ----------- Advanced Variable Charge Gun Advanced KE Penetrator Advanced KE Penetrator > --- INVENTORY -------- Centrium Medium Armor Plating Relay Coupler [Hunter] Phase Gun Hypervelocity Mass Driver Improved Remote Datajack [Rating: 132] Favorites ----------- Power Antimatter Reactor Engine Ion Engine Power Core Fission Core Reactor Antimatter Reactor Propulsion Gravmag Array Treads Light Treads Leg Flexi-carbon Leg Wheel Wheel Hover Unit Gravmag Array Flight Unit Improved Flight Unit Utility Target Analyzer Device Advanced Coolant Injector Storage Small Storage Unit Processor Target Analyzer Hackware Improved Hacking Suite Protection Centrium Medium Armor Plating Weapon Advanced KE Penetrator Energy Gun Phase Gun Energy Cannon Matter Neutralizer Ballistic Gun Advanced KE Penetrator Ballistic Cannon Heavy Assault Cannon Launcher Advanced EMP Blaster Special Weapon Remote Datajack Build | -11 -10 -10 -8 -7 -7 -7 -6 -6 -6 -6 -5 -4 -3 ------- Run | Yrd Mat Sub Mat Fac Gar Fac Fac Ext Cet Arc Fac Fac Res Slots Evolved 14 | . . . 4 2 . . 2 . . . 2 2 2 Power . | . . . . . . . . . . . . . . Propulsion 4 | . . . 2 2 . . . . . . . . . Utility 9 | . . . 2 . . . 2 . . . 2 2 1 Weapon 1 | . . . . . . . . . . . . . 1 Parts Attached 220 | . 20 10 21 7 23 5 21 38 10 11 20 13 21 Power 15 | . 4 1 3 1 1 . . 4 1 . . . . Engine 11 | . 4 1 2 1 . . . 3 . . . . . Core 2 | . . . 1 . . . . 1 . . . . . Reactor 2 | . . . . . 1 . . . 1 . . . . Propulsion 52 | . 6 2 1 2 4 1 6 12 . 2 7 2 7 Treads 15 | . . . . . 3 1 6 5 . . . . . Leg 4 | . . . . . . . . 4 . . . . . Wheel 8 | . 6 2 . . . . . . . . . . . Hover 19 | . . . . . . . . 3 . 2 7 2 5 Flight 6 | . . . 1 2 1 . . . . . . . 2 Utility 70 | . 2 2 6 . 6 2 8 8 2 9 9 7 9 Device 27 | . . . 1 . 3 . 7 3 . 4 5 1 3 Storage 2 | . . . . . . 1 . . . . . . 1 Processor 13 | . 2 . 2 . 2 1 . 2 . . 1 1 2 Hackware 14 | . . . 1 . 1 . 1 3 . 4 1 1 2 Protection 14 | . . 2 2 . . . . . 2 1 2 4 1 Artifact . | . . . . . . . . . . . . . . Weapon 83 | . 8 5 11 4 12 2 7 14 7 . 4 4 5 Energy Gun 32 | . 3 2 4 1 5 1 3 8 2 . . . 3 Energy Cannon 3 | . . . . . 1 . 1 . . . 1 . . Ballistic Gun 15 | . 3 1 1 . . 1 . . 4 . 3 2 . Ballistic Cannon 9 | . . 1 1 1 2 . 1 2 . . . . 1 Launcher 16 | . 2 1 5 2 4 . . 1 1 . . . . Special Weapon 8 | . . . . . . . 2 3 . . . 2 1 Impact Weapon . | . . . . . . . . . . . . . . Slashing Weapon . | . . . . . . . . . . . . . . Piercing Weapon . | . . . . . . . . . . . . . . Special Melee Weapon . | . . . . . . . . . . . . . . Unidentified Prototypes 18 | . . . 3 4 . 1 1 . 3 . 2 1 3 Corrupted Parts 10 | . . . 2 . 1 . . 3 4 . . . . System Corruption 55 | . . . 14 . 1 . . 17 23 . . . . Parts Lost 41 | . 5 3 5 1 2 . 1 12 1 . 2 1 8 Power 8 | . 1 1 2 . . . . 3 . . . . 1 Propulsion 12 | . 1 . . . 1 . 1 6 . . 1 . 2 Utility 13 | . . . 2 1 1 . . 3 1 . 1 1 3 Weapon 8 | . 3 2 1 . . . . . . . . . 2 Highest Loss Streak 5 | . 5 2 3 1 2 . 1 5 1 . 1 1 3 To Critical Strikes 1 | . . . . . . . . . 1 . . . . Average Slot Usage (%) 82 | . 93 97 56 53 74 89 86 83 79 84 82 87 80 Engine 3 | . 13 13 5 6 2 . . 1 . . . . . Reactor 2 | . . . . . 4 7 6 . 4 6 5 5 2 Treads 8 | . . . . . 12 27 25 13 . . . . . Leg 3 | . 6 . . . . . . 12 . . . . . Wheel 4 | . 20 28 2 . . . . . . . . . . Hover 5 | . . . . . . . . 1 20 24 23 21 17 Flight 3 | . . . 6 13 13 7 1 . . . . . . Device 9 | . . . . 6 13 7 20 13 6 4 10 15 14 Storage 6 | . 14 14 7 6 6 7 6 5 . . . . 1 Processor 7 | . 10 1 3 6 6 7 6 10 13 8 2 4 9 Hackware 5 | . . . 6 5 . 7 4 5 7 14 14 14 14 Protection 3 | . . 12 9 . . . . . 10 11 10 15 4 Energy Gun 6 | . 7 16 7 . 6 7 6 9 2 . . . 3 Energy Cannon 1 | . . . . . 2 7 4 . . . . . . Ballistic Gun 5 | . 18 2 1 . . . . . 10 13 10 9 6 Ballistic Cannon 1 | . . 7 . 4 1 . . 1 . . . . . Peak Build Rating 132 | . 10 13 66 73 80 66 84 85 93 95 108 120 132 Average Rating 63 | . 8 10 51 66 66 65 76 56 88 91 101 116 117 On Entrance 61 | 6 6 10 13 66 66 63 66 84 71 93 95 108 120 Naked Turns . | . . . . . . . . . . . . . . Heaviest Build 64 | 11 15 21 31 29 39 43 50 50 47 48 53 64 59 Greatest Support 205 | 20 20 20 24 29 125 148 205 205 60 60 58 58 66 Greatest Overweight (x) 2 | . 1 1 1 . . . . 1 . . . 1 2 Average Overweight (x) . | . . . . . . . . . . . . . . Largest Inventory Capacity 10 | . 8 8 8 8 8 10 10 10 5 5 5 5 5 Average Capacity 7 | . 8 8 8 8 8 9 10 9 5 5 5 5 5 Most Carried 10 | . 8 8 8 8 8 10 10 10 5 5 5 5 5 Average Carried 7 | . 7 7 7 7 7 9 9 9 5 5 5 4 4 Final Capacity 10 | 8 8 8 8 8 8 10 10 5 5 5 5 5 5 Final Carried 10 | 6 8 8 8 6 8 10 10 5 5 5 5 5 4 Class Distribution -------------------- 36% | Mutant 31% | Scavenger-Mutant 13% | Commander-Mutant 12% | Bothacker-Mutant Dominant Class ---------------- Mutant | -10/Materials Mutant | -10/Subcaves Mutant | -8/Materials Scavenger-Mutant | -7/Factory Mutant | -7/Garrison Bothacker-Mutant | -7/Factory Bothacker-Mutant | -6/Factory Mutant | -6/Extension Commander-Mutant | -6/Cetus Scavenger-Mutant | -6/Archives Scavenger-Mutant | -5/Factory Scavenger-Mutant | -4/Factory Scavenger-Skirmisher | -3/Research Resources | -11 -10 -10 -8 -7 -7 -7 -6 -6 -6 -6 -5 -4 -3 ----------- Run | Yrd Mat Sub Mat Fac Gar Fac Fac Ext Cet Arc Fac Fac Res Matter Collected 5125 | 164 558 288 445 175 423 82 395 746 173 388 278 538 472 Remotely . | . . . . . . . . . . . . . . Salvage Created 6870 | . 822 153 800 425 1089 82 587 681 80 143 352 657 999 Parts 375 | . 66 12 54 22 56 4 27 29 1 15 16 28 45 Haulers Intercepted 8 | . . . 3 2 . . 1 . . . 1 . 1 Recyclers Shooed 2 | . 1 . . . . . . . . . 1 . . Parts Field Recycled . | . . . . . . . . . . . . . . Retrieved Matter . | . . . . . . . . . . . . . . Parts Self-Destructed 5 | . . 5 . . . . . . . . . . . Prevented . | . . . . . . . . . . . . . . Kills | -11 -10 -10 -8 -7 -7 -7 -6 -6 -6 -6 -5 -4 -3 ------- Run | Yrd Mat Sub Mat Fac Gar Fac Fac Ext Cet Arc Fac Fac Res Combat Hostiles Destroyed 116 | . 18 5 14 6 26 2 10 12 1 . 2 6 14 Guns 60 | . 15 2 4 . 9 . 4 5 . . 2 6 13 Cannons 25 | . . 1 1 2 9 2 4 6 . . . . . AOE 21 | . 3 2 9 3 2 . . 1 . . . . 1 Classes Destroyed 19 | . 9 1 6 . 1 . . 2 . . . . . Worker 9 | . 3 . . 2 . . 1 . . . 1 1 1 Builder 12 | . 2 . 3 . . . 3 2 . . . 2 . Tunneler 1 | . 1 . . . . . . . . . . . . Hauler 8 | . . . 3 2 . . 1 . . . 1 . 1 Recycler 6 | . 2 . 1 1 . . . 1 . . . 1 . Mechanic 1 | . 1 . . . . . . . . . . . . Operator 8 | . 1 . . . . . . 1 . 4 1 1 . Watcher 7 | . 3 . . . . . . 1 . . 2 1 . Swarmer 24 | . 6 . . 3 7 . 4 . . . . . 4 Cutter 4 | . . . 4 . . . . . . . . . . Grunt 51 | . 12 2 5 1 10 . 5 6 . . 1 3 6 Duelist 2 | . . . . . . . . 1 . . . 1 . Sentry 7 | . . . 1 . 1 1 . 1 . . 1 1 1 Specialist 6 | . . . 2 . 4 . . . . . . . . Hunter 6 | . . . 1 2 1 . . 1 . . . . 1 Programmer 9 | . . . . . 3 1 1 1 . . . 1 2 Heavy 1 | . . . 1 . . . . . . . . . . Behemoth 2 | . . . . . . . . 2 . . . . . Cetus Guard 1 | . . . . . . . . . 1 . . . . Subdweller 3 | . . 3 . . . . . . . . . . . Best Kill Streak 10 | . 9 2 10 7 6 1 4 5 1 1 3 4 6 Combat Bots Only 6 | . 5 2 6 4 6 1 4 4 1 . 1 2 5 Max Kills in Single Turn 3 | . 1 1 3 3 2 1 2 2 1 1 2 2 2 Gunslinging . | . . . . . . . . . . . . . . Exploded 2 | . 1 1 2 1 1 . . 1 . . . . 1 Melee . | . . . . . . . . . . . . . . Uniques/NPCs Destroyed . | . . . . . . . . . . . . . . Combat | -11 -10 -10 -8 -7 -7 -7 -6 -6 -6 -6 -5 -4 -3 -------- Run | Yrd Mat Sub Mat Fac Gar Fac Fac Ext Cet Arc Fac Fac Res Hostile Shots Fired 890 | . 88 34 73 28 131 30 37 229 22 7 20 48 143 Missed 332 | . 24 14 25 16 52 11 13 89 8 4 9 23 44 Damage Taken 10108 | . 899 368 1043 189 1253 179 548 2198 313 73 280 652 2113 Core 1125 | . 159 44 136 15 127 . 32 258 12 . . 60 282 Absorbed by Shields 180 | . . . . . . . . 106 74 . . . . Reduced by Siege Mode 77 | . . . . . 10 . . 67 . . . . . Redirected to Shielding 173 | . . . . . . . . . . . . 84 89 Ignored by Resistances 7 | . . . 7 . . . . . . . . . . Regen/Repaired (Parts) 486 | . 76 . 137 . . . . . . . . . 273 Core Remaining (%) 75 | 100 . 18 75 . . 79 . . . 64 100 94 . Volleys Fired 516 | . 83 25 38 14 67 9 38 85 10 28 22 36 61 Largest 3 | . 2 2 2 2 2 2 2 2 2 2 2 2 3 Hottest 363 | . 80 99 105 72 193 193 193 185 240 70 70 70 363 Shots Fired 884 | . 154 45 58 16 110 15 58 130 18 55 44 68 113 Gun 633 | . 143 32 35 . 68 4 22 54 15 55 44 64 97 Cannon 162 | . . 7 5 10 35 11 27 54 . . . . 13 Launcher 56 | . 11 6 18 6 7 . . 5 3 . . . . Special 33 | . . . . . . . 9 17 . . . 4 3 Kinetic 460 | . 105 16 5 10 20 . 1 44 9 55 44 64 87 Thermal 222 | . . 16 19 . 31 15 48 64 6 . . . 23 Explosive 27 | . 11 6 10 . . . . . . . . . . Electromagnetic 142 | . 38 7 24 6 59 . . 5 3 . . . . Robot Hit Streak 16 | . 13 9 7 8 10 6 13 16 10 4 12 6 12 Robot Miss Streak 6 | . 5 5 3 1 4 2 1 6 2 5 6 5 4 Penetration Max 1 | . . . . . . . . 1 . 1 1 1 1 Secondary Targets 10 | . 4 . . . . . . . . . . 1 5 Max Gunslinging Chain 1 | . 1 . . . . . . . . . . 1 1 Shots Hit Robots 546 | . 98 27 36 14 61 9 36 102 7 28 21 40 67 Core Hits 290 | . 49 10 34 10 34 2 19 56 8 8 10 21 29 Critical Kills 14 | . 1 . . . 1 . 2 1 . 2 2 3 2 Critical Parts Destroyed 21 | . 3 . . . . . 1 1 . 5 3 3 5 Critical Strikes 54 | . 4 . 2 1 5 . 4 11 . 7 5 6 9 Burn 2 | . . . 1 . . . 1 . . . . . . Meltdown 2 | . . . . . 1 . 1 . . . . . . Destroy 35 | . 4 . . . . . 2 2 . 7 5 6 9 Blast 14 | . . . . 1 4 . . 9 . . . . . Corrupt 1 | . . . 1 . . . . . . . . . . Melee Attacks . | . . . . . . . . . . . . . . Impact . | . . . . . . . . . . . . . . Slashing . | . . . . . . . . . . . . . . Piercing . | . . . . . . . . . . . . . . Sneak Attacks . | . . . . . . . . . . . . . . Combat Hostiles . | . . . . . . . . . . . . . . Follow-up Attacks . | . . . . . . . . . . . . . . Damage Inflicted 17330 | . 1629 676 1567 769 2506 329 963 3038 391 886 763 1456 2357 Guns 9797 | . 1220 339 387 . 788 63 471 1061 106 886 763 1456 2257 Cannons 4145 | . . 106 227 356 1083 266 435 1572 . . . . 100 Explosions 3331 | . 409 231 953 413 612 . 35 393 285 . . . . Melee . | . . . . . . . . . . . . . . Ramming 57 | . . . . . 23 . 22 12 . . . . . Kinetic 8652 | . 885 221 227 356 774 . 17 1243 28 886 763 1456 1796 Thermal 4792 | . 35 156 497 . 802 329 889 1445 78 . . . 561 Explosive 943 | . 374 231 338 . . . . . . . . . . Electromagnetic 2886 | . 335 68 505 413 907 . 35 338 285 . . . . Impact . | . . . . . . . . . . . . . . Slashing . | . . . . . . . . . . . . . . Piercing . | . . . . . . . . . . . . . . Highest Corruption 38 | . . . 17 . 4 5 2 19 38 38 2 1 . Average Corruption 9 | . . . 7 . 2 4 1 11 34 33 2 1 . Corruption Purged 11 | . . . . . . . . 4 . 7 . . . Corruption Blocked . | . . . . . . . . . . . . . . Effects 127 | . . . 4 . 14 9 3 49 19 19 7 3 . Message Errors 26 | . . . 1 . 2 . 3 10 2 6 2 . . Matter Fused 23 | . . . 1 . 2 2 . 10 3 3 1 1 . Heat Flow Errors 8 | . . . . . . 1 . 2 3 2 . . . Energy Discharges 18 | . . . . . 4 1 . 9 1 2 1 . . Parts Rejected 2 | . . . . . . . . 2 . . . . . Parts Fused 3 | . . . . . . . . 2 1 . . . . Data Loss (minor) 26 | . . . . . 3 2 . 7 6 3 3 2 . Data Loss (major) 4 | . . . 1 . . 1 . 2 . . . . . Misfires 8 | . . . 1 . . 2 . 3 1 1 . . . Alerts 2 | . . . . . 1 . . 1 . . . . . Misdirections 1 | . . . . . . . . . 1 . . . . Weapon Failures 6 | . . . . . 2 . . 1 1 2 . . . Overload Shots 6 | . . . . . . . . . 2 . . . 4 Overflow Damage 243 | . 6 . 4 55 84 40 39 15 . . . . . Projectiles 146 | . . . . 35 17 40 39 15 . . . . . Explosions 97 | . 6 . 4 20 67 . . . . . . . . Melee . | . . . . . . . . . . . . . . Knockbacks 11 | . . 1 1 . 5 . . 1 . . . . 3 Impact . | . . . . . . . . . . . . . . Kinetic 11 | . . 1 1 . 5 . . 1 . . . . 3 Secondary . | . . . . . . . . . . . . . . Self-Inflicted Damage 391 | . 193 . 126 . 26 . 24 22 . . . . . Shots 14 | . 6 . 5 . 1 . 1 1 . . . . . Rammed 8 | . . . . . 7 . 1 . . . . . . Targets Rammed 11 | . . . . . 7 . 3 1 . . . . . Kicked 1 | . . . . . . . . 1 . . . . . Crushed 2 | . . . . . . . 2 . . . . . . Highest Temperature 463 | . 90 8 463 52 318 195 192 171 118 309 89 144 436 Average Temperature 89 | . 24 3 174 23 91 90 104 54 45 96 26 68 132 Received Heat Transfer 1934 | . 327 111 243 18 348 . 111 386 18 . 45 39 288 Effects 16 | . . . 12 . 1 . . . . 1 . . 2 Shutdowns 2 | . . . 2 . . . . . . . . . . Energy Bleed 6 | . . . 3 . 1 . . . . 1 . . 1 Matter Decay 2 | . . . 2 . . . . . . . . . . Short Circuit 1 | . . . . . . . . . . . . . 1 Damage (major) 5 | . . . 5 . . . . . . . . . . Siege Activations 2 | . . . . . 1 . . 1 . . . . . Total Turns 25 | . . . . . 11 . . 14 . . . . . Longest Duration 14 | . . . . . 11 . . 14 . . . . . Robots Corrupted 7 | . . . . 1 5 . . . 1 . . . . Combat Hostiles 7 | . . . . 1 5 . . . 1 . . . . Parts Fried 10 | . . . 1 1 8 . . . . . . . . Impact Corruptions . | . . . . . . . . . . . . . . Robots Melted 3 | . . . . . 1 . 2 . . . . . . Combat Hostiles 3 | . . . . . 1 . 2 . . . . . . Parts Melted 11 | . . . . . 4 . 5 2 . . . . . Heat Transferred 6334 | . 50 175 805 . 829 333 981 2392 175 . . . 594 Parts Sabotaged . | . . . . . . . . . . . . . . Parts Stolen . | . . . . . . . . . . . . . . Parts Stripped . | . . . . . . . . . . . . . . Power Chain Reactions 8 | . 1 . 3 . 3 . . 1 . . . . . Alert | -11 -10 -10 -8 -7 -7 -7 -6 -6 -6 -6 -5 -4 -3 ------- Run | Yrd Mat Sub Mat Fac Gar Fac Fac Ext Cet Arc Fac Fac Res Peak Influence 1328 | . 488 . 645 492 1151 697 675 904 516 466 1062 1328 1186 Initial 696 | . . . 115 217 354 604 340 234 445 206 163 510 696 Average 555 | . 286 . 321 298 879 648 511 411 493 422 669 811 984 Maximum Alert Level 4 | . 2 . 2 2 4 2 2 3 2 2 3 4 4 Low Security (%) 9 | . 32 . 33 . . . . 12 . . 4 . . Level 1 25 | . 44 . 35 85 1 . 4 57 . 12 30 . . Level 2 38 | . 22 . 30 14 16 100 95 11 99 87 14 47 10 Level 3 22 | . . . . . 69 . . 19 . . 50 29 62 Level 4 4 | . . . . . 12 . . . . . . 22 26 Level 5 . | . . . . . . . . . . . . . . High Security . | . . . . . . . . . . . . . . Max Security . | . . . . . . . . . . . . . . Squads Dispatched 38 | . 3 . 4 3 . . 3 4 . . 9 5 7 Investigation 13 | . 2 . 1 1 . . 1 2 . . 3 2 1 Extermination 4 | . . . . . . . 1 . . . 1 1 1 Reinforcement 15 | . 1 . 3 2 . . . 2 . . 3 2 2 Assault 3 | . . . . . . . 1 . . . 2 . . Garrison 3 | . . . . . . . . . . . . . 3 Intercept . | . . . . . . . . . . . . . . Searches Triggered . | . . . . . . . . . . . . . . Construction Impeded 4 | . . . . . . . . 1 . . 1 1 1 Haulers Reinforced 4 | . . . . 1 . . . . . . 2 . 1 Active Scanning Responses . | . . . . . . . . . . . . . . Cargo Convoy Interrupts . | . . . . . . . . . . . . . . Stealth | -11 -10 -10 -8 -7 -7 -7 -6 -6 -6 -6 -5 -4 -3 --------- Run | Yrd Mat Sub Mat Fac Gar Fac Fac Ext Cet Arc Fac Fac Res Distress Signals 14 | . 1 . . . . . . 3 . . 4 3 3 Communications Jammed . | . . . . . . . . . . . . . . Distress Signals . | . . . . . . . . . . . . . . Times Spotted 249 | . 25 5 16 12 28 2 17 39 5 18 29 27 26 Peak Tracking Total 12 | . 6 2 5 7 4 1 5 6 5 2 12 11 12 Tactical Retreats 18 | . 4 . 4 2 2 . . 1 . . . 2 3 Traps | -11 -10 -10 -8 -7 -7 -7 -6 -6 -6 -6 -5 -4 -3 ------- Run | Yrd Mat Sub Mat Fac Gar Fac Fac Ext Cet Arc Fac Fac Res Traps Triggered 15 | . 3 1 . 1 2 1 2 1 . . 4 . . Indirectly 2 | . . . . . 2 . . . . . . . . Trap Hack Attempts . | . . . . . . . . . . . . . . Triggered . | . . . . . . . . . . . . . . Disarmed 6 | . . . . . . . . . . . . . 6 Reprogrammed . | . . . . . . . . . . . . . . Reused . | . . . . . . . . . . . . . . Traps Extracted . | . . . . . . . . . . . . . . Installed . | . . . . . . . . . . . . . . Triggered . | . . . . . . . . . . . . . . Objects Rigged 1 | . 1 . . . . . . . . . . . . Machines | -11 -10 -10 -8 -7 -7 -7 -6 -6 -6 -6 -5 -4 -3 ---------- Run | Yrd Mat Sub Mat Fac Gar Fac Fac Ext Cet Arc Fac Fac Res Machines Disabled 33 | . 2 1 2 . 5 1 7 2 4 3 3 1 2 Max in Single Turn 4 | . 1 1 2 . 2 1 4 1 2 1 1 1 1 Garrison Relay 2 | . . . . . 2 . . . . . . . . Phase Generator 1 | . . . . . 1 . . . . . . . . Machines Repaired . | . . . . . . . . . . . . . . Machines Dismantled . | . . . . . . . . . . . . . . Machines Sabotaged . | . . . . . . . . . . . . . . Overloaded Fab Kills . | . . . . . . . . . . . . . . Hacking | -11 -10 -10 -8 -7 -7 -7 -6 -6 -6 -6 -5 -4 -3 --------- Run | Yrd Mat Sub Mat Fac Gar Fac Fac Ext Cet Arc Fac Fac Res Machines Accessed 40 | . 10 1 1 3 3 . 2 5 3 . 7 3 2 Terminals 26 | . 7 . . 1 3 . 1 5 3 . 4 1 1 Fabricators 2 | . . . . . . . . . . . 1 1 . Repair Stations 5 | . 1 . 1 1 . . . . . . 1 . 1 Recycling Units 5 | . 2 . . . . . 1 . . . 1 1 . Scanalyzers . | . . . . . . . . . . . . . . Garrison Access 1 | . . . . 1 . . . . . . . . . Total Hacks 100 | . 30 1 3 5 6 . 6 14 3 . 18 9 5 Successful 51 | . 19 1 3 1 3 . 2 7 2 . 5 4 4 Failed 49 | . 11 . . 4 3 . 4 7 1 . 13 5 1 Catastrophic 6 | . 1 . . 1 . . . . 1 . 2 1 . Database Lockouts . | . . . . . . . . . . . . . . Manual 36 | . 10 . 1 2 . . . 1 8 . 10 3 1 Terminals 67 | . 21 . . 2 6 . 3 14 3 . 11 3 4 Fabricators 6 | . . . . . . . . . . . 3 3 . Repair Stations 10 | . 2 . 3 1 . . . . . . 3 . 1 Recycling Units 14 | . 7 . . . . . 3 . . . 1 3 . Scanalyzers . | . . . . . . . . . . . . . . Garrison Access 2 | . . . . 2 . . . . . . . . . Terminal Hacks 27 | . 9 1 . . 3 . 1 6 2 . 1 1 3 Record 2 | . . . . . . . . . 2 . . . . Robot Analysis 2 | . 1 . . . . . . . . . . 1 . Prototype ID Bank 3 | . 1 . . . . . . 1 . . 1 . . Open Door 5 | . . . . . 1 . 1 3 . . . . . Branch Access Points 1 | . 1 . . . . . . . . . . . . Emergency Access Points 2 | . 1 . . . 1 . . . . . . . . Recycling Unit Index 1 | . 1 . . . . . . . . . . . . Garrison Index 1 | . . . . . . . . . . . . . 1 Alert Level 2 | . 1 . . . . . . 1 . . . . . Locate Traps 3 | . 1 . . . . . . 1 . . . . 1 Disarm Traps 1 | . . . . . . . . . . . . . 1 Maintenance Status 1 | . 1 . . . . . . . . . . . . Zone Layout 1 | . 1 . . . . . . . . . . . . Garrison Registry 1 | . . . . . 1 . . . . . . . . Derelict Proto ID Bank 1 | . . 1 . . . . . . . . . . . Fabricator Hacks 2 | . . . . . . . . . . . 1 1 . Network Status 2 | . . . . . . . . . . . 1 1 . Repair Station Hacks 5 | . 2 . 2 . . . . . . . 1 . . Scan Component 3 | . 1 . 1 . . . . . . . 1 . . Repair 2 | . 1 . 1 . . . . . . . . . . Recycling Unit Hacks 8 | . 5 . . . . . 1 . . . 1 1 . Process 2 | . 2 . . . . . . . . . . . . Report Inventory 5 | . 2 . . . . . 1 . . . 1 1 . Retrieve Matter 1 | . 1 . . . . . . . . . . . . Scanalyzer . | . . . . . . . . . . . . . . Garrison Access Hacks 1 | . . . . 1 . . . . . . . . . Unlock Access 1 | . . . . 1 . . . . . . . . . Unauthorized Hacks 8 | . 3 . 1 . . . . 1 . . 1 1 1 Terminals 6 | . 3 . . . . . . 1 . . 1 1 . Botnet 4 | . 1 . . . . . . 1 . . 1 1 . Detonate 1 | . 1 . . . . . . . . . . . . Operators 1 | . 1 . . . . . . . . . . . . Fabricators . | . . . . . . . . . . . . . . Repair Stations 2 | . . . 1 . . . . . . . . . 1 Patch 2 | . . . 1 . . . . . . . . . 1 Recycling Units . | . . . . . . . . . . . . . . Scanalyzers . | . . . . . . . . . . . . . . Garrison Access . | . . . . . . . . . . . . . . Data Cores Recovered 1 | . . . . . . . . 1 . . . . . Used 1 | . . . . . . . . 1 . . . . . Hacking Detections 30 | . 9 . . 3 1 . 1 3 3 . 6 3 1 Full Trace Events 11 | . 3 . . 1 . . 1 2 . . 2 2 . Feedback Events 2 | . . . . . . . 1 . . . . 1 . Corruption 2 | . . . . . . . 1 . . . . 1 . Feedback Blocked . | . . . . . . . . . . . . . . Robot Schematics Acquired . | . . . . . . . . . . . . . . Robots Built . | . . . . . . . . . . . . . . Authchips . | . . . . . . . . . . . . . . Time . | . . . . . . . . . . . . . . Total Robot Build Rating . | . . . . . . . . . . . . . . Part Schematics Acquired . | . . . . . . . . . . . . . . Parts Built . | . . . . . . . . . . . . . . Authchips . | . . . . . . . . . . . . . . Time . | . . . . . . . . . . . . . . Total Part Build Rating . | . . . . . . . . . . . . . . Parts Repaired 2 | . 1 . 1 . . . . . . . . . . Time 52 | . 26 . 26 . . . . . . . . . . Parts Recycled . | . . . . . . . . . . . . . . Recycled Matter 544 | . 544 . . . . . . . . . . . . Retrieved Matter 203 | . 203 . . . . . . . . . . . . Retrieved Components . | . . . . . . . . . . . . . . Parts Scanalyzed . | . . . . . . . . . . . . . . Part Schematics Acquired . | . . . . . . . . . . . . . . Parts Damaged . | . . . . . . . . . . . . . . Bothacking | -11 -10 -10 -8 -7 -7 -7 -6 -6 -6 -6 -5 -4 -3 ------------ Run | Yrd Mat Sub Mat Fac Gar Fac Fac Ext Cet Arc Fac Fac Res Used RIF Installer 1 | . . . . . 1 . . . . . . . . Robots Hacked 13 | . . . . . . . 5 6 . . . 1 1 Non-combat 1 | . . . . . . . . 1 . . . . . Combat 12 | . . . . . . . 5 5 . . . 1 1 Robot Hacks Applied 15 | . . . . . . . 6 6 . . . 1 2 ignore_parts 1 | . . . . . . . . 1 . . . . . amplify_resonance 3 | . . . . . . . 1 1 . . . . 1 wipe_record 1 | . . . . . . . 1 . . . . . . reboot_system 2 | . . . . . . . 1 1 . . . . . overwrite_iff 3 | . . . . . . . . 3 . . . . . formatsys_high 5 | . . . . . . . 3 . . . . 1 1 Relay Couplers Released 8 | . . . . . 8 . . . . . . . . Machine Destruction 8 | . . . . . 8 . . . . . . . . Attached 5 | . . . . . 1 . 1 1 . . . 1 1 Fabnet Peak Effective % . | . . . . . . . . . . . . . . Robots Rewired 19 | . . . . . 2 . . 15 . . . 2 . Allies Hacked . | . . . . . . . . . . . . . . Hacks Repelled . | . . . . . . . . . . . . . . Allies | -11 -10 -10 -8 -7 -7 -7 -6 -6 -6 -6 -5 -4 -3 -------- Run | Yrd Mat Sub Mat Fac Gar Fac Fac Ext Cet Arc Fac Fac Res Total Allies 36 | . . . . . 2 . 3 22 5 . . 3 1 Largest Group 13 | . . . . . 2 . 2 13 13 12 10 3 1 Highest-Rated Group 803 | . . . . . 56 . 76 538 803 803 612 146 49 Highest-Rated Ally 159 | . . . . . 31 . 47 159 159 159 96 56 49 Total Orders 2 | . . . . . . . . . . . . . 2 STAY 1 | . . . . . . . . . . . . . 1 FOLLOW 1 | . . . . . . . . . . . . . 1 Ally Attacks 271 | . . . . . 2 . 11 110 31 34 48 32 3 Total Damage 8179 | . . . . . 42 . 248 2296 720 978 1807 2053 35 Kills 54 | . . . . . . . 1 21 4 4 14 10 . Allies Corrupted 1 | . . . . . . . . 1 . . . . . Allies Melted . | . . . . . . . . . . . . . . Intel | -11 -10 -10 -8 -7 -7 -7 -6 -6 -6 -6 -5 -4 -3 ------- Run | Yrd Mat Sub Mat Fac Gar Fac Fac Ext Cet Arc Fac Fac Res Robot Analysis Total 2 | . 1 . . . . . . . . . . 1 . Derelict Logs Recovered 2 | . . 2 . . . . . . . . . . . Drone Launches . | . . . . . . . . . . . . . . Drone Recoveries . | . . . . . . . . . . . . . . Exploration | -11 -10 -10 -8 -7 -7 -7 -6 -6 -6 -6 -5 -4 -3 ------------- Run | Yrd Mat Sub Mat Fac Gar Fac Fac Ext Cet Arc Fac Fac Res Turns Passed 6998 | . 881 386 427 134 953 396 592 1373 341 370 396 257 492 Spaces Moved 5402 | 1 659 357 351 207 691 233 288 703 183 219 634 330 546 Core . | . . . . . . . . . . . . . . Treads 960 | . . . . . 331 233 288 108 . . . . . Legs 620 | 1 108 . . . . . . 511 . . . . . Wheels 952 | . 551 357 44 . . . . . . . . . . Hover 1946 | . . . . . . . . 84 183 219 634 330 496 Flight 924 | . . . 307 207 360 . . . . . . . 50 Fastest Speed 26 | 120 80 80 40 37 32 155 156 52 52 48 36 38 26 Average Speed 78 | 120 86 81 48 37 91 155 159 118 52 49 42 38 41 Slowest Speed 190 | 120 120 95 95 37 160 156 160 190 52 52 52 103 175 Overloaded Moves 2 | . . . . . . . . . . . . . 2 Propulsion Burnouts . | . . . . . . . . . . . . . . Robots Hopped 11 | . . . 5 6 . . . . . . . . . Cave-ins Triggered . | . . . . . . . . . . . . . . Exploration Rate (%) 38 | 2 95 19 23 7 82 6 11 90 79 84 16 13 17 Regions Visited 13 Branch Regions 4 Pre-discovered Areas . | . . . . . . . . . . . . . . Known Exits Taken 3 | . . 1 . 1 . . . . . . 1 . . Unknown Exits Taken 9 | 1 1 . 1 . . 1 1 1 1 1 . 1 . Scrap Searched 7 | . . 7 . . . . . . . . . . . Spaces Dug 2 | . . . . . . . . . . . 2 . . Terrain Destroyed 365 | . 43 29 50 1 94 3 6 9 1 20 19 46 44 Melee . | . . . . . . . . . . . . . . Projectile 155 | . . . . 1 11 3 6 4 1 20 19 46 44 AOE 210 | . 43 29 50 . 83 . . 5 . . . . . Terrain Rammed . | . . . . . . . . . . . . . . Walls Destroyed . | . . . . . . . . . . . . . . Machines Disabled . | . . . . . . . . . . . . . . Actions | -11 -10 -10 -8 -7 -7 -7 -6 -6 -6 -6 -5 -4 -3 --------- Run | Yrd Mat Sub Mat Fac Gar Fac Fac Ext Cet Arc Fac Fac Res Total 7249 | . 820 404 539 243 891 253 364 1104 407 420 709 391 704 Wait 787 | . 30 2 111 3 36 . 1 146 201 160 28 8 61 Move 5368 | . 658 356 340 196 689 232 287 702 182 218 633 329 546 Hop 10 | . . . 5 5 . . . . . . . . . Pick Up 71 | . 14 2 11 5 21 3 3 8 1 . 1 . 2 Fast Attach 90 | . 6 4 10 2 8 2 5 17 1 5 13 5 12 Attach 33 | . 5 2 3 4 10 . 2 4 . . . 1 2 Detach 19 | . 1 2 1 4 2 1 1 2 . 2 . . 3 Swap 98 | . 9 4 9 1 5 3 14 17 9 6 7 7 7 Drop 108 | . 14 7 11 9 19 3 9 13 3 1 5 4 10 Fire 516 | . 83 25 38 14 67 9 38 85 10 28 22 36 61 Melee . | . . . . . . . . . . . . . . Ram . | . . . . . . . . . . . . . . Kick 1 | . . . . . . . . 1 . . . . . Crush 10 | . . . . . 7 . 3 . . . . . . Escape Stasis 5 | . . . . . . . . 5 . . . . . Rewire 133 | . . . . . 27 . 1 104 . . . 1 . Trap . | . . . . . . . . . . . . . . Miscellaneous . | . . . . . . . . . . . . . . Route ------- -11/Scrapyard -10/Materials (discovered 6 exits: [*Mat x3] / *Min x2 / *Sub) -10/Subcaves -8/Materials -7/Factory -7/Garrison (discovered 3 exits: [*Fac x3]) -7/Factory -6/Factory -6/Extension (discovered 2 exits: *Fac / *Cet) -6/Cetus -6/Archives (discovered 2 exits: *Fac / [*Hub]) -5/Factory -4/Factory -3/Research History --------- Turn | Location | Event 1 | -11/Scrapyard | Discovered new exit (range 0) 1 | -11/Scrapyard | Entered Materials 169 | -10/Materials | Discovered new exit (range 16) 300 | -10/Materials | Repaired Assault Rifle 338 | -10/Materials | Build established: Mutant 404 | -10/Materials | Discovered new exit (range 16) 440 | -10/Materials | Discovered new exit (range 8) 501 | -10/Materials | Identified exit to Mines 622 | -10/Materials | Core integrity fell below 50% 652 | -10/Materials | Lost 5 parts (1p1n3w) 787 | -10/Materials | Discovered new exit (range 7) 872 | -10/Materials | Discovered new exit (range 10) 882 | -10/Materials | Entered Subcaves 927 | -10/Subcaves | Identified exit to Materials 1051 | -10/Subcaves | Visited 4L-MR0's lab 1071 | -10/Subcaves | Found Flightbrick 1145 | -10/Subcaves | Learned Materials garrison access intel 1152 | -10/Subcaves | Disturbed a concealed Subdweller 1217 | -10/Subcaves | Shifting Twisted Machinery released Sub. Monowheel 1221 | -10/Subcaves | Shifting Twisted Machinery released Sub. Beam Cannon 1244 | -10/Subcaves | Core integrity fell below 20% 1268 | -10/Subcaves | Entered Materials 1268 | -8/Materials | Evolved 4 slots: Propulsion x2, Utility x2 1269 | -8/Materials | Loaded intel: 1 garrison access location 1315 | -8/Materials | Attached Flightbrick, gained temporary slots: Utility x3 1381 | -8/Materials | Repaired Lgt. Armor Plating 1614 | -8/Materials | Lost 3 parts (1p2u) 1638 | -8/Materials | System corruption reached 10% 1654 | -8/Materials | Discovered new exit (range 8) 1695 | -8/Materials | Entered Factory 1695 | -7/Factory | Evolved 2 slots: Propulsion x2 1829 | -7/Factory | Identified exit to Garrison 1829 | -7/Factory | Entered Garrison 1844 | -7/Garrison | Discovered new exit (range 87) 1844 | -7/Garrison | Discovered new exit (range 56) 1844 | -7/Garrison | Discovered new exit (range 43) 1845 | -7/Garrison | Garrison Relay disabled 1886 | -7/Garrison | Phase Generator disabled 1963 | -7/Garrison | Triggered checkpoint 2317 | -7/Garrison | Garrison Relay disabled 2351 | -7/Garrison | Triggered checkpoint 2388 | -7/Garrison | Installed Relay Interface Framework 2479 | -7/Garrison | Triggered checkpoint 2575 | -7/Garrison | Triggered checkpoint 2782 | -7/Garrison | Entered Factory 2813 | -7/Factory | Discovered new exit (range 12) 3068 | -7/Factory | Build established: Bothacker-Mutant 3178 | -7/Factory | Entered another Factory area 3178 | -6/Factory | Evolved 2 slots: Utility x2 3528 | -6/Factory | First assault squad dispatched 3696 | -6/Factory | Lost 3 allies 3764 | -6/Factory | Discovered new exit (range 6) 3770 | -6/Factory | Entered Extension 3775 | -6/Extension | Disrupted transfer network 3900 | -6/Extension | Spotted B-75 Beast 3918 | -6/Extension | Destroyed B-75 Beast 3957 | -6/Extension | Lost 3 parts (1p2n) 3994 | -6/Extension | Build established: Mutant 4061 | -6/Extension | Spotted B-75 Beast 4106 | -6/Extension | Destroyed B-75 Beast 4135 | -6/Extension | Lost 5 parts (1p3n1u) 4338 | -6/Extension | Rescued A7 4443 | -6/Extension | System corruption reached 10% 4804 | -6/Extension | Rescued a captive Derelict 4805 | -6/Extension | Rescued a captive Derelict 4845 | -6/Extension | Rescued a captive Derelict 4963 | -6/Extension | Lost 4 allies 5075 | -6/Extension | Discovered new exit (range 10) 5077 | -6/Extension | Discovered new exit (range 6) 5143 | -6/Extension | Entered Cetus 5143 | -6/Cetus | Accompanied by 13 allies (A7) 5148 | -6/Cetus | Acquired a Cetus Manufacturing Module code from A7 5159 | -6/Cetus | Spotted Cetus Guard 5159 | -6/Cetus | Spotted Cetus Guard 5159 | -6/Cetus | Spotted Cetus Guard 5159 | -6/Cetus | Spotted Cetus Guard 5179 | -6/Cetus | Destroyed Cetus Guard 5185 | -6/Cetus | Allies destroyed Cetus Guard 5187 | -6/Cetus | Allies destroyed Cetus Guard 5190 | -6/Cetus | Allies destroyed Cetus Guard 5203 | -6/Cetus | System corruption reached 30% 5215 | -6/Cetus | Lost 6 allies 5236 | -6/Cetus | Started Cetus Manufacturing Module 5247 | -6/Cetus | Escorted A7 to Cetus Mainframe 5261 | -6/Cetus | Manufactured an Enhanced Grunt 5285 | -6/Cetus | Build established: Commander-Mutant 5286 | -6/Cetus | Manufactured an Enhanced Grunt 5311 | -6/Cetus | Manufactured an Enhanced Grunt 5336 | -6/Cetus | Manufactured an Enhanced Grunt 5361 | -6/Cetus | Manufactured an Enhanced Grunt 5407 | -6/Cetus | Found a strange terminal 5414 | -6/Cetus | Discovered new exit (range 22) 5484 | -6/Cetus | Entered Archives 5484 | -6/Archives | Accompanied by 12 allies (A7) 5489 | -6/Archives | Received a hacking code to weaken MAIN.C 5565 | -6/Archives | Discovered new exit (range 22) 5702 | -6/Archives | Unable to access archive contents 5709 | -6/Archives | Discovered new exit (range 15) 5854 | -6/Archives | Entered Factory 5854 | -5/Factory | Accompanied by 10 allies 5854 | -5/Factory | Evolved 2 slots: Utility x2 5969 | -5/Factory | Build established: Scavenger-Mutant 6014 | -5/Factory | Discovered new exit (range 16) 6027 | -5/Factory | Identified exit to Factory 6154 | -5/Factory | First assault squad dispatched 6250 | -5/Factory | Entered another Factory area 6250 | -4/Factory | Evolved 2 slots: Utility x2 6290 | -4/Factory | Found Powered Armor 6293 | -4/Factory | Found Powered Armor 6496 | -4/Factory | Discovered new exit (range 11) 6507 | -4/Factory | Entered Research 6507 | -3/Research | Evolved 2 slots: Utility x1, Weapon x1 6654 | -3/Research | Garrison activated, responded to threat 6909 | -3/Research | Spotted B-86 Titan 6917 | -3/Research | Found Exp. System Shield 6999 | -3/Research | Self-destructed Last Messages --------------- 06971_ G-67 Veteran suffers critical hit (Destroy). 06971_ Destroyed Plasma Rifle. 06974_ HV Slug penetrates Wall. 06980_ HV Slug penetrates G-67 Veteran. 06980_ G-67 Veteran knocked back. 06985_ HV Slug penetrates G-73 Enforcer. 06985_ G-73 Enforcer knocked back. 06987_ HV Slug penetrates G-73 Enforcer. 06987_ G-73 Enforcer suffers critical hit (Destroy). 06987_ Destroyed Myomer Leg. 06987_ G-73 Enforcer knocked back. 06987_ HV Slug penetrates G-73 Enforcer. 06993_ HV Slug penetrates Wall. 06996_ ALERT: Security rotation in progress. 06996_ Linear Gravjet destroyed. 06997_ HV Slug penetrates G-73 Enforcer. 06997_ G-73 Enforcer suffers critical hit (Destroy). 06997_ Destroyed Hvy. Laser. 06997_ Com. Battery destroyed. 06998_ Relay Coupler [Sentry] destroyed. Map ----- +----------------------------------------------------+ | ?????????????????????????????????????????????????? | | ?????????????????????????????????????????????????? | | ?????????????????????????????????????????????????? | | ?????????????????????????????????????????????????? | | ?????????????????????????????????????????????????? | | ?????????????????????????????????????????????????? | | ?????????????????????????????????????????????????? | | ?????????????????????????????????????????????????? | | ?????????????????????????????????????????????????? | | ?????????????????????????????????????????????????? | | ?????????????????????????????????????????????????? | | ?????????????????????????????????????????????????? | | ?????????????????????????????????????????????????? | | ?????????????????????????????????????????????????? | | ?????????????????????????????????????????????????? | | ?????????????????????????????????????????????????? | | ?????????????????????????????????????????????????? | | ?????????????????????????????????????????????????? | | ?????????????????????????????????????????????????? | | ???????????????????????????????#?????????????????? | | ?????????????????????????????? +?????????????????? | | ????????????????????????????? #?????????????????? | | ????????#########??????????? #?????????????????? | | ????????# ? ??????????? #?????????????????? | | ????????# ???######## % #?????????????????? | | ????????# ???# @g #?????????????????? | | ????????# """ ???# gggg #######???????????? | | ????????# """ ????# u % ??????? | | ????????? """ ????# #########?????????? | | ?????????? ????# ########?????????????????? | | ??????????? ????# g #????????????????????????? | | ############/###### #????????????????????????? | | #????????????????????????? | | #????????????????????????? | | +????????????????????????? | | kk #????????????????????????? | | ####+############A #????????????????????????? | | # #?????#k #????????????????????????? | | # #?????# #????????????????????????? | | # #?????# #????????????????????????? | | # #?????# #????????????????????????? | | + #?????# #????????????????????????? | | # #?????# ????????????????????????? | | # #?????##+####???????????????????????? | | # """#???????????????????????????????????? | | # """#???????????????????????????????????? | | # """#???????????????????????????????????? | | # """#???????????????????????????????????? | | + """#???????????????????????????????????? | | # """#???????????????????????????????????? | +----------------------------------------------------+ Best States ------------- Heat Dissipation 75 Coolant Potential 100 Energy Generation 31 Energy Capacity 550 Matter Stores 300 Matter Capacity 300 Sight Range 22 Robot Scan Range 16 Terrain Scan Density 85 Base Temperature (-) 150 Corruption Block 20 Armor Coverage 450 Resistance: EM 15 Propulsion Shielding 90 Evasion (%) 63 Targeting Accuracy 8 Target Analysis 5 Core Analysis 6 Armor Integrity Analysis 40 Recoil Reduction 6 Energy Filtering 30 Particle Charging 20 Kinecelleration 40 Offensive Hacking 26 Defensive Hacking 24 Relay Coupler Types 1 Relay Coupler Value 28 Item Schematics ----------------- None Robot Schematics ------------------ None Fabricated ------------ Nothing Alien Tech Used ----------------- None Achievements -------------- None Challenges ------------ None Game ------ Seed IntegratedPlasmaMatrix Manual? 0 Play Time 01:14:21 Cumulative 874.9 hours Start 2024.08.19 @ 12:01:01 End 2024.08.19 @ 14:46:55 Sessions 5 Manual Loads 0 Difficulty Rogue Special Mode None Game No. 1054 Rogue 775 Adventurer 124 Explorer 155 Win Type - Total 37 Types 28/0/7/1/0/0/0/1/0 Lore% 76 Gallery% 89 Achievement% 78 Wizard Run 0 Options --------- Layout 0 ASCII 0 Keyboard 1 Movement Numpad Keybinds 0 Fullscreen 2 Font 18/Smallcaps Map View 76x50 Zoom Use 0% Tactical HUD 1 Map Filters NONE Filters NONE Steam 1 RUN: 216b86f7-5c24-49ad-a51c-fa835d058e5c